fUSD/lending_fUSD_20251223
["ID","MTS","AMOUNT","RATE_DAILY","PERIOD"]
[399567162,1766496640878,-179.57758,0.00013633,2]
[399567163,1766496640887,-151.0,0.00013633,2]
[399567164,1766496640896,-151.0,0.00013633,2]
[399567165,1766496640905,-274.45988,0.00013633,2]
[399567166,1766496640914,-274.45988,0.00013633,2]
[399567167,1766496640923,-274.45988,0.00013633,2]
[399567168,1766496640933,-274.45988,0.00013633,2]
[399567169,1766496640942,-14893.79318342,0.00013633,2]
[399567170,1766496640952,-1000.0,0.00013643,2]
[399567171,1766496640961,-1656.54303973,0.00013688,2]
[399567172,1766496640970,-151.0,0.00013695,2]
[399567173,1766496640979,-165.4969409,0.00013697,2]
[399567174,1766496640988,-516.65166204,0.00013698,2]
[399567175,1766496640997,-500.0,0.00013698,2]
[399567176,1766496641006,-500.0,0.00013698,2]
[399567177,1766496641015,-500.0,0.00013698,2]
[399567178,1766496641024,-500.0,0.00013698,2]
[399567179,1766496641032,-500.0,0.00013698,2]
[399567180,1766496641041,-500.0,0.00013698,2]
[399567181,1766496641050,-522.96995118,0.00013698,2]
[399567182,1766496641059,-500.0,0.00013698,2]
[399567183,1766496641068,-500.0,0.00013698,2]
[399567184,1766496641077,-500.0,0.00013698,2]
[399567185,1766496641086,-500.0,0.00013698,2]
[399567186,1766496641095,-500.0,0.00013698,2]
[399567187,1766496641103,-500.0,0.00013698,2]
[399567188,1766496641113,-500.0,0.00013698,2]
[399567189,1766496641122,-500.0,0.00013698,2]
[399567190,1766496641131,-504.09132802,0.00013698,2]
[399567191,1766496641139,-500.0,0.00013698,2]
[399567192,1766496641148,-500.0,0.00013698,2]
[399567193,1766496641157,-500.0,0.00013698,2]
[399567194,1766496641167,-399.26186122,0.00013698,2]
[399567195,1766496641175,-597.81,0.00013698,2]
[399567196,1766496641185,-549.72199341,0.00013698,2]
[399567197,1766496641194,-500.0,0.00013698,2]
[399567198,1766496641203,-500.0,0.00013698,2]
[399567199,1766496641211,-500.0,0.00013698,2]
[399567200,1766496641220,-500.0,0.00013698,2]
[399567201,1766496641229,-500.0,0.00013698,2]
[399567202,1766496641238,-602.57648286,0.00013698,2]
[399567203,1766496641247,-500.0,0.00013698,2]
[399567204,1766496641256,-500.0,0.00013698,2]
[399567205,1766496641265,-500.0,0.00013698,2]
[399567206,1766496641275,-531.31290996,0.00013698,2]
[399567207,1766496641284,-507.68415604,0.00013698,2]
[399567208,1766496641293,-400.0,0.00013698,2]
[399567209,1766496641302,-500.0,0.00013698,2]
[399567210,1766496641311,-500.0,0.00013698,2]
[399567211,1766496641320,-506.34489947,0.00013698,2]
[399567212,1766496641329,-500.0,0.00013698,2]
[399567213,1766496641338,-500.0,0.00013698,2]
[399567214,1766496641347,-500.0,0.00013698,2]
[399567215,1766496641356,-414.818323,0.00013698,2]
[399567216,1766496641364,-500.0,0.00013698,2]
[399567217,1766496641373,-500.0,0.00013698,2]
[399567218,1766496641382,-500.0,0.00013698,2]
[399567219,1766496641391,-500.0,0.00013698,2]
[399567220,1766496641400,-500.0,0.00013698,2]
[399567221,1766496641409,-500.0,0.00013698,2]
[399567222,1766496641418,-500.0,0.00013698,2]
[399567223,1766496641426,-500.0,0.00013698,2]
[399567224,1766496641435,-500.0,0.00013698,2]
[399567225,1766496641444,-500.0,0.00013698,2]
[399567226,1766496641453,-500.0,0.00013698,2]
[399567227,1766496641462,-500.0,0.00013698,2]
[399567228,1766496641471,-500.0,0.00013698,2]
[399567229,1766496641480,-500.0,0.00013698,2]
[399567230,1766496641489,-506.26948739,0.00013698,2]
[399567231,1766496641497,-500.0,0.00013698,2]
[399567232,1766496641506,-500.0,0.00013698,2]
[399567233,1766496641515,-500.0,0.00013698,2]
[399567234,1766496641524,-500.0,0.00013698,2]
[399567235,1766496641532,-500.0,0.00013698,2]
[399567236,1766496641542,-500.0,0.00013698,2]
[399567237,1766496641550,-151.0,0.00013698,2]
[399567238,1766496641559,-151.0,0.00013698,2]
[399567239,1766496641568,-151.0,0.00013698,2]
[399567240,1766496641577,-151.0,0.00013698,2]
[399567241,1766496641587,-151.0,0.00013698,2]
[399567242,1766496641597,-151.0,0.00013698,2]
[399567243,1766496641607,-151.0,0.00013698,2]
[399567244,1766496641617,-1271.12,0.00013698,2]
[399567245,1766496641627,-151.0,0.00013698,2]
[399567246,1766496641636,-151.0,0.00013698,2]
[399567247,1766496641645,-151.0,0.00013698,2]
[399567248,1766496641654,-269.251734,0.00013698,2]
[399567249,1766496641664,-166.66,0.00013699,2]
[399567250,1766496641672,-608.01,0.00013699,2]
[399567251,1766496641681,-151.0,0.00013699,2]
[399567252,1766496641690,-151.0,0.00013699,2]
[399567253,1766496641699,-151.0,0.00013699,2]
[399567254,1766496641708,-151.0,0.00013699,2]
[399567255,1766496641718,-151.0,0.00013699,2]
[399567256,1766496641726,-173.64879,0.00013699,2]
[399567257,1766496641735,-173.64879,0.00013699,2]
[399567258,1766496641744,-173.64879,0.00013699,2]
[399567259,1766496641753,-173.64879,0.00013699,2]
[399567260,1766496641762,-151.0,0.00013699,2]
[399567261,1766496641771,-661.4,0.00013699,2]
[399567262,1766496641780,-151.0,0.00013699,2]
[399567263,1766496641791,-151.0,0.00013699,2]
[399567264,1766496641800,-151.0,0.00013699,2]
[399567265,1766496641809,-151.0,0.00013699,2]
[399567266,1766496641819,-151.0,0.00013699,2]
[399567267,1766496641830,-151.0,0.00013699,2]
[399567268,1766496641839,-151.0,0.00013699,2]
[399567269,1766496641848,-151.0,0.00013699,2]
[399567270,1766496641857,-151.0,0.00013699,2]
[399567271,1766496641868,-151.0,0.00013699,2]
[399567272,1766496641877,-151.0,0.00013699,2]
[399567273,1766496641887,-151.0,0.00013699,2]
[399567274,1766496641896,-151.0,0.00013699,2]
[399567275,1766496641905,-179.57758,0.00013699,2]
[399567276,1766496641914,-179.57758,0.00013699,2]
[399567277,1766496641923,-151.0,0.00013699,2]
[399567278,1766496641932,-179.57758,0.00013699,2]
[399567279,1766496641941,-179.57758,0.00013699,2]
[399567280,1766496641950,-151.0,0.00013699,2]
[399567281,1766496641960,-151.0,0.00013699,2]
[399567282,1766496641969,-173.64879,0.00013699,2]
[399567283,1766496641978,-173.64879,0.00013699,2]
[399567284,1766496641988,-173.64879,0.00013699,2]
[399567285,1766496641998,-173.64879,0.00013699,2]
[399567286,1766496642007,-274.45988,0.00013699,2]
[399567287,1766496642017,-274.45988,0.00013699,2]
[399567288,1766496642027,-274.45988,0.00013699,2]
[399567289,1766496642037,-274.45988,0.00013699,2]
[399567290,1766496642047,-151.0,0.000137,2]
[399567291,1766496642057,-151.0,0.000137,2]
[399567292,1766496642067,-151.0,0.000137,2]
[399567293,1766496642077,-151.0,0.000137,2]
[399567294,1766496642087,-9771.41,0.000137,2]
[399567295,1766496642097,-9771.41,0.000137,2]
[399567296,1766496642107,-151.0,0.0001372,2]
[399567297,1766496642117,-151.0,0.0001372,2]
[399567298,1766496642127,-151.0,0.0001372,2]
[399567299,1766496642136,-151.0,0.0001372,2]
[399567300,1766496642145,-151.0,0.0001372,2]
[399567301,1766496642155,-151.0,0.0001372,2]
[399567302,1766496642165,-151.0,0.0001372,2]
[399567303,1766496642174,-152.331222,0.0001372,2]
[399567304,1766496642184,-781.58281026,0.00013834,2]
[399567305,1766496642194,-166.66,0.00013836,2]
[399567306,1766496642203,-1600.43,0.00013898,2]
[399567307,1766496642212,-255.0,0.00013899,2]
[399567308,1766496642221,-1271.12,0.00013972,2]
[399567309,1766496642231,-166.66,0.00013973,2]
[399567310,1766496642240,-1500.0,0.00014,2]
[399567311,1766496642249,-1050.91532362,0.00014,2]
[399567312,1766496642259,-151.0,0.000141,2]
[399567313,1766496642268,-234.950329,0.000141,2]
[399567314,1766496642279,-151.0,0.000141,2]
[399567315,1766496642288,-151.0,0.000141,2]
[399567316,1766496642298,-151.0,0.000141,2]
[399567317,1766496642307,-151.0,0.000141,2]
[399567318,1766496642316,-151.0,0.000141,2]
[399567319,1766496642325,-151.0,0.000141,2]
[399567320,1766496642335,-151.0,0.000141,2]
[399567321,1766496642344,-179.57758,0.000141,2]
[399567322,1766496642353,-179.57758,0.000141,2]
[399567323,1766496642362,-151.0,0.000141,2]
[399567324,1766496642372,-179.57758,0.000141,2]
[399567325,1766496642381,-179.57758,0.000141,2]
[399567326,1766496642391,-151.0,0.000141,2]
[399567327,1766496642400,-151.0,0.000141,2]
[399567328,1766496642409,-173.64879,0.000141,2]
[399567329,1766496642418,-173.64879,0.000141,2]
[399567330,1766496642427,-173.64879,0.000141,2]
[399567331,1766496642436,-173.64879,0.000141,2]
[399567332,1766496642445,-274.45988,0.000141,2]
[399567333,1766496642455,-274.45988,0.000141,2]
[399567334,1766496642464,-274.45988,0.000141,2]
[399567335,1766496642474,-274.45988,0.000141,2]
[399567336,1766496642483,-14893.79318342,0.000141,2]
[399567337,1766496642493,-151.0,0.000141,2]
[399567338,1766496642502,-151.0,0.000141,2]
[399567339,1766496642511,-151.0,0.000141,2]
[399567340,1766496642520,-291.266073,0.000141,2]
[399567341,1766496642529,-166.66,0.0001411,2]
[399567342,1766496642539,-200.885929,0.00014174,2]
[399567343,1766496642548,-151.0,0.00014174,2]
[399567344,1766496642557,-2270.53938256,0.0001421,7]
[399567345,1766496642566,-1271.12,0.00014246,2]
[399567346,1766496642576,-166.66,0.00014247,2]
[399567347,1766496642585,-5591.0,0.00014267,2]
[399567348,1766496642594,-166.66,0.00014384,2]
[399567349,1766496642603,-10032.44301602,0.0001451,2]
[399567350,1766496642613,-151.0,0.0001451,2]
[399567351,1766496642622,-151.0,0.0001451,2]
[399567352,1766496642632,-151.0,0.0001451,2]
[399567353,1766496642641,-151.0,0.0001451,2]
[399567354,1766496642651,-159.313513,0.0001451,2]
[399567355,1766496642661,-151.0,0.0001451,2]
[399567356,1766496642670,-151.0,0.0001451,2]
[399567357,1766496642679,-151.0,0.0001451,2]
[399567358,1766496642689,-1271.12,0.0001452,2]
[399567359,1766496642698,-180.0,0.0001452,2]
[399567360,1766496642707,-166.2,0.00014553,2]
[399567361,1766496642716,-14893.79318342,0.00014567,2]
[399567362,1766496642725,-151.0,0.00014567,2]
[399567363,1766496642734,-151.0,0.00014567,2]
[399567364,1766496642743,-151.0,0.00014567,2]
[399567365,1766496642752,-151.0,0.00014567,2]
[399567366,1766496642761,-151.0,0.00014567,2]
[399567367,1766496642770,-151.0,0.00014567,2]
[399567368,1766496642779,-157.775104,0.00014567,2]
[399567369,1766496642792,-151.0,0.00014567,2]
[399567370,1766496642801,-179.57758,0.00014567,2]
[399567371,1766496642810,-179.57758,0.00014567,2]
[399567372,1766496642819,-151.0,0.00014567,2]
[399567373,1766496642828,-179.57758,0.00014567,2]
[399567374,1766496642837,-179.57758,0.00014567,2]
[399567375,1766496642846,-151.0,0.00014567,2]
[399567376,1766496642855,-151.0,0.00014567,2]
[399567377,1766496642864,-173.64879,0.00014567,2]
[399567378,1766496642873,-173.64879,0.00014567,2]
[399567379,1766496642882,-173.64879,0.00014567,2]
[399567380,1766496642891,-173.64879,0.00014567,2]
[399567381,1766496642900,-274.45988,0.00014567,2]
[399567382,1766496642909,-274.45988,0.00014567,2]
[399567383,1766496642918,-274.45988,0.00014567,2]
[399567384,1766496642927,-274.45988,0.00014567,2]
[399567385,1766496642937,-2351.0,0.0001458,2]
[399567386,1766496642946,-151.0,0.00014628,2]
[399567387,1766496642955,-171.51,0.00014703,2]
[399567388,1766496642965,-200.0,0.00014703,2]
[399567389,1766496642974,-20587.6103252,0.00014767,2]
[399567390,1766496642983,-151.0,0.00014767,2]
[399567391,1766496642993,-153.080294,0.00014767,2]
[399567392,1766496643002,-151.0,0.00014767,2]
[399567393,1766496643011,-248.326801,0.00014767,2]
[399567394,1766496643021,-151.0,0.00014767,2]
[399567395,1766496643030,-151.0,0.00014767,2]
[399567397,1766496643039,-151.0,0.00014767,2]
[399567399,1766496643048,-1271.12,0.00014794,2]
[399567400,1766496643057,-250.0,0.0001481,2]
[399567401,1766496643066,-437.99,0.00014845,2]
[399567402,1766496643076,-151.0,0.000149,2]
[399567403,1766496643085,-151.0,0.000149,2]
[399567404,1766496643094,-151.0,0.00015033,2]
[399567406,1766496643103,-151.0,0.00015033,2]
[399567407,1766496643112,-151.0,0.00015033,2]
[399567408,1766496643121,-151.0,0.00015033,2]
[399567409,1766496643130,-151.0,0.00015033,2]
[399567410,1766496643139,-301.749325,0.00015033,2]
[399567411,1766496643148,-181.556921,0.00015033,2]
[399567412,1766496643158,-179.57758,0.00015033,2]
[399567413,1766496643167,-179.57758,0.00015033,2]
[399567414,1766496643176,-151.0,0.00015033,2]
[399567415,1766496643185,-179.57758,0.00015033,2]
[399567416,1766496643195,-179.57758,0.00015033,2]
[399567418,1766496643205,-151.0,0.00015033,2]
[399567419,1766496643215,-151.0,0.00015033,2]
[399567420,1766496643224,-173.64879,0.00015033,2]
[399567421,1766496643233,-173.64879,0.00015033,2]
[399567422,1766496643242,-173.64879,0.00015033,2]
[399567423,1766496643252,-173.648799,0.00015033,2]
[399567424,1766496643261,-274.45988,0.00015033,2]
[399567425,1766496643271,-274.45988,0.00015033,2]
[399567426,1766496643280,-274.45988,0.00015033,2]
[399567427,1766496643290,-274.45988,0.00015033,2]
[399567428,1766496643299,-14893.79318342,0.00015033,2]
[399567429,1766496643308,-1271.12,0.00015068,2]
[399567430,1766496643318,-151.0,0.00015068,2]
[399567431,1766496643327,-151.0,0.00015068,2]
[399567432,1766496643336,-773.89342,0.00015068,2]
[399567433,1766496643346,-773.89342,0.00015068,2]
[399567434,1766496643355,-773.89342,0.00015068,2]
[399567435,1766496643364,-773.89342,0.00015068,2]
[399567436,1766496643373,-773.89342,0.00015068,2]
[399567437,1766496643383,-773.89342,0.00015068,2]
[399567438,1766496643392,-773.89342,0.00015068,2]
[399567439,1766496643401,-773.89342,0.00015068,2]
[399567440,1766496643412,-773.89342,0.00015068,2]
[399567441,1766496643421,-773.89342,0.00015068,2]
[399567442,1766496643431,-773.89342,0.00015068,2]
[399567443,1766496643440,-773.89342,0.00015068,2]
[399567444,1766496643449,-773.89342,0.00015068,2]
[399567445,1766496643459,-773.89342,0.00015068,2]
[399567446,1766496643468,-773.89342,0.00015068,2]
[399567447,1766496643477,-773.89342,0.00015068,2]
[399567448,1766496643487,-773.89342,0.00015068,2]
[399567449,1766496643496,-773.89342,0.00015068,2]
[399567450,1766496643505,-773.89342,0.00015068,2]
[399567451,1766496643514,-773.893429,0.00015068,2]
[399567452,1766496643523,-282.0,0.00015089,2]
[399567453,1766496643532,-151.0,0.0001509,2]
[399567454,1766496643541,-151.0,0.00015113,2]
[399567455,1766496643550,-4593.7167889,0.00015139,2]
[399567456,1766496643560,-1000.0,0.00015159,2]
[399567457,1766496643569,-155.12,0.00015159,2]
[399567458,1766496643578,-151.0,0.00015214,2]
[399567459,1766496643587,-1271.12,0.00015342,2]
[399567461,1766496643597,-14893.79318342,0.000155,2]
[399567462,1766496643605,-151.0,0.00015537,2]
[399567463,1766496643615,-164.326782,0.00015537,2]
[399567464,1766496643624,-1000.0,0.000156,2]
[399567465,1766496643633,-1271.12,0.00015616,2]
[399567466,1766496643643,-166.9,0.00015691,2]
[399567467,1766496643651,-500.0,0.00015711,2]
[399567468,1766496643661,-283.21041028,0.00015711,2]
[399567469,1766496643670,-500.0,0.00015711,2]
[399567470,1766496643679,-250.0,0.00015711,2]
[399567471,1766496643689,-500.0,0.00015711,2]
[399567472,1766496643698,-250.0,0.00015711,2]
[399567474,1766496643707,-250.0,0.00015711,2]
[399567476,1766496643716,-500.0,0.00015711,2]
[399567477,1766496643725,-250.0,0.00015711,2]
[399567478,1766496643735,-250.0,0.00015711,2]
[399567479,1766496643744,-500.0,0.00015711,2]
[399567480,1766496643753,-250.0,0.00015711,2]
[399567481,1766496643763,-250.0,0.00015711,2]
[399567483,1766496643772,-250.0,0.00015711,2]
[399567485,1766496643782,-500.0,0.00015711,2]
[399567487,1766496643794,-250.0,0.00015711,2]
[399567489,1766496643803,-250.0,0.00015711,2]
[399567490,1766496643813,-500.0,0.00015711,2]
[399567491,1766496643822,-250.0,0.00015711,2]
[399567492,1766496643833,-500.0,0.00015711,2]
[399567493,1766496643842,-250.0,0.00015711,2]
[399567494,1766496643851,-500.0,0.00015711,2]
[399567495,1766496643860,-250.0,0.00015711,2]
[399567496,1766496643871,-500.0,0.00015711,2]
[399567497,1766496643880,-500.0,0.00015711,2]
[399567498,1766496643889,-250.0,0.00015711,2]
[399567499,1766496643899,-500.0,0.00015711,2]
[399567500,1766496643908,-151.0,0.00015711,2]
[399567501,1766496643919,-500.0,0.00015711,2]
[399567502,1766496643928,-250.0,0.00015711,2]
[399567503,1766496643938,-500.0,0.00015711,2]
[399567504,1766496643948,-250.0,0.00015711,2]
[399567505,1766496643958,-500.0,0.00015711,2]
[399567506,1766496643966,-500.0,0.00015711,2]
[399567507,1766496643975,-500.0,0.00015711,2]
[399567508,1766496643984,-500.0,0.00015711,2]
[399567509,1766496643994,-500.0,0.00015711,2]
[399567510,1766496644003,-500.0,0.00015711,2]
[399567511,1766496644012,-500.0,0.00015711,2]
[399567512,1766496644023,-500.0,0.00015711,2]
[399567513,1766496644032,-500.0,0.00015711,2]
[399567514,1766496644042,-9552.16786547,0.00015711,2]
[399567515,1766496644051,-500.0,0.00015711,2]
[399567516,1766496644060,-500.0,0.00015711,2]
[399567517,1766496644069,-578.20924308,0.00015711,2]
[399567518,1766496644078,-250.0,0.00015711,2]
[399567519,1766496644088,-1108.0,0.00015711,2]
[399567520,1766496644098,-1000.0,0.00015711,2]
[399567521,1766496644107,-250.0,0.00015711,2]
[399567522,1766496644116,-151.0,0.00015711,2]
[399567523,1766496644126,-1000.0,0.00015711,2]
[399567524,1766496644135,-250.0,0.00015711,2]
[399567525,1766496644146,-250.0,0.00015711,2]
[399567526,1766496644155,-1036.59747576,0.00015711,2]
[399567527,1766496644165,-574.12855637,0.00015711,2]
[399567528,1766496644174,-250.0,0.00015711,2]
[399567529,1766496644183,-250.0,0.00015711,2]
[399567530,1766496644192,-250.0,0.00015711,2]
[399567531,1766496644201,-250.0,0.00015711,2]
[399567532,1766496644210,-322.6107,0.00015711,2]
[399567533,1766496644220,-250.0,0.00015711,2]
[399567534,1766496644229,-250.0,0.00015711,2]
[399567535,1766496644238,-250.0,0.00015711,2]
[399567536,1766496644248,-1097.34129496,0.00015711,2]
[399567537,1766496644257,-250.0,0.00015711,2]
[399567538,1766496644266,-250.0,0.00015711,2]
[399567539,1766496644275,-250.0,0.00015711,2]
[399567540,1766496644285,-220.0,0.00015711,2]
[399567541,1766496644294,-250.0,0.00015711,2]
[399567542,1766496644304,-305.17021709,0.00015711,2]
[399567543,1766496644314,-200.0,0.00015711,2]
[399567544,1766496644323,-207.4,0.00015711,2]
[399567545,1766496644332,-215.0738,0.00015711,2]
[399567546,1766496644341,-1500.0,0.00015711,2]
[399567547,1766496644350,-223.0315306,0.00015711,2]
[399567548,1766496644359,-1500.0,0.00015711,2]
[399567549,1766496644369,-231.28369723,0.00015711,2]
[399567550,1766496644379,-1500.0,0.00015711,2]
[399567551,1766496644388,-239.84119403,0.00015711,2]
[399567552,1766496644397,-1500.0,0.00015711,2]
[399567553,1766496644406,-248.71531821,0.00015711,2]
[399567554,1766496644415,-1500.0,0.00015711,2]
[399567555,1766496644424,-341.32045697,0.00015711,2]
[399567556,1766496644433,-1500.0,0.00015711,2]
[399567557,1766496644443,-1500.0,0.00015711,2]
[399567558,1766496644452,-1500.0,0.00015711,2]
[399567559,1766496644461,-1500.0,0.00015711,2]
[399567560,1766496644470,-1500.0,0.00015711,2]
[399567561,1766496644480,-443.22982514,0.00015711,2]
[399567562,1766496645149,-591.46997237,0.00015711,2]
[399567563,1766496645306,-465.30020249,0.00015711,2]
[399567564,1766496645315,-151.0,0.00015712,2]
[399567565,1766496645325,-151.0,0.00015712,2]
[399567566,1766496645335,-151.0,0.00015712,2]
[399567567,1766496645345,-151.0,0.00015766,2]
[399567568,1766496645355,-151.0,0.00015766,2]
[399567569,1766496645364,-151.0,0.00015766,2]
[399567570,1766496645373,-6628.08360992,0.00015766,2]
[399567571,1766496645384,-3277.51446658,0.00015766,2]
[399567572,1766496645394,-500.0,0.00015783,2]
[399567573,1766496645403,-536.34604787,0.00015783,2]
[399567574,1766496645412,-1705.87781422,0.00015821,2]
[399567575,1766496645431,-259.19169647,0.00015821,2]
[399567576,1766496645442,-2493.1,0.00015821,2]
[399567577,1766496645453,-649.83334176,0.00015821,2]
[399567578,1766496645533,-650.0,0.00015821,2]
[399567579,1766496645595,-133.58258493,0.00015821,2]
[399567580,1766496645607,-554.60931742,0.00015821,2]
[399567581,1766496645619,-631.0,0.00015821,2]
[399567594,1766496646338,-409.3595,0.000126,2]
[399567595,1766496646350,-325.0,0.000126,2]
[399567596,1766496646451,-2954.93571423,0.000126,2]
[399567597,1766496646463,-4951.46414392,0.000126,2]
[399567598,1766496646475,-1104.89183922,0.000126,2]
[399567599,1766496646486,-96060.77653951,0.000126,2]
[399567600,1766496646497,-322.8916,0.000126,2]
[399567601,1766496646563,-306.94332034,0.000126,2]
[399567602,1766496646574,-2832.68514778,0.000126,2]
[399567604,1766497141514,171.79,0.00010818,2]
[399567605,1766497416120,171.48,6.87e-05,2]
[399567606,1766497416536,171.48,8.587e-05,2]
[399567607,1766497416749,171.48,0.00010304,2]
[399567613,1766497831297,-591.33512808,0.00012,2]
[399567614,1766497831306,-248.0,0.00012,2]
[399567615,1766497831315,-171.48,0.00012022,2]
[399567616,1766497831325,-158.435,0.00012348,2]
[399567617,1766497831334,-1065.18,0.00012348,2]
[399567618,1766497831343,-527.78318328,0.000124,2]
[399567619,1766497831353,-782.06506667,0.00012492,2]
[399567620,1766497831362,-5793.17046367,0.00012492,2]
[399567621,1766497831371,-594.2092946,0.00012492,2]
[399567622,1766497831380,-1200.0,0.00012498,2]
[399567623,1766497831389,-650.0,0.00012499,2]
[399567624,1766497831398,-417.14989276,0.00012499,2]
[399567625,1766497831410,-82.85010724,0.00012499,2]
[399567626,1766497831418,-208.61989276,0.00012499,2]
[399567627,1766497831429,-110.95612269,0.00012499,2]
[399567628,1766497831438,-500.0,0.00012499,2]
[399567629,1766497831447,-541.09758662,0.00012499,2]
[399567630,1766497831457,-341.78393197,0.000125,2]
[399567631,1766497831468,-1417.57369718,0.000125,2]
[399567632,1766497831478,-2708.78032593,0.000125,2]
[399567633,1766497831487,-3416.10585168,0.000125,2]
[399567634,1766497831509,-1159.01343246,0.000125,2]
[399567635,1766497831519,-10154.11469533,0.000125,2]
[399567636,1766497831530,-16363.40536528,0.000125,2]
[399567648,1766497837389,-293.7,0.000125,2]
[399567649,1766497837464,-1174.05132289,0.000125,2]
[399567650,1766497837475,-6548.08261607,0.000125,2]
[399567651,1766497837487,-1868.13557772,0.000125,2]
[399567652,1766497837498,-1163.57498245,0.000125,2]
[399567653,1766497837509,-614.04572072,0.000125,2]
[399567654,1766497837524,-2177.62818745,0.000125,2]
[399567655,1766497837619,-300.90673977,0.000125,2]
[399567672,1766497839500,-5431.42356605,0.000125,2]
[399567673,1766497839511,-3926.8525346,0.000125,2]
[399567674,1766497839523,-380.53677497,0.000125,2]
[399567675,1766497839534,-21718.75184512,0.000125,2]
[399567676,1766497839545,-4740.32327929,0.000125,2]
[399567677,1766497839555,-1310.89922344,0.000125,2]
[399567678,1766497839566,-995.60328618,0.000125,2]
[399567679,1766497839577,-5234.16385438,0.000125,2]
[399567680,1766497839588,-369.0,0.000125,2]
[399567681,1766497839616,-756.76,0.000125,2]
[399567682,1766497839841,-691.10317124,0.000125,2]
[399567697,1766497844561,-9672.77947436,0.000125,2]
[399567698,1766497844572,-40394.73592117,0.000125,2]
[399567699,1766497844587,-1417.67063,0.000125,2]
[399567700,1766497844598,-1573.28442931,0.000125,2]
[399567701,1766497844609,-350492.00000001,0.000125,2]
[399567703,1766497845464,-945.89473246,0.000125,2]
[399567704,1766497845476,-248300.55589445,0.000125,2]
[399567705,1766497845778,-60352.12438347,0.000125,2]
[399567706,1766497845792,-60927.42861112,0.000125,2]
[399567707,1766497845803,-11212.91691309,0.000125,2]
[399567710,1766498184449,506.5,0.00022,30]
[399567711,1766498368636,500.0,0.0001234,3]
[399567719,1766498979015,999.0,0.00013418,3]
[399567721,1766499031479,-500.0,0.0001234,2]
[399567722,1766499031489,-282.76857672,0.0001249,2]
[399567723,1766499031502,-917.23142328,0.0001249,2]
[399567724,1766499031511,-151.0,0.00012493,2]
[399567725,1766499031520,-151.0,0.00012493,2]
[399567726,1766499031530,-130.38146604,0.00012493,2]
[399567727,1766499031546,-20.61853396,0.00012493,2]
[399567728,1766499031555,-500.0,0.00012493,2]
[399567729,1766499031565,-151.0,0.00012493,2]
[399567730,1766499031574,-500.0,0.00012493,2]
[399567731,1766499031584,-151.0,0.00012493,2]
[399567732,1766499031594,-500.0,0.00012493,2]
[399567733,1766499031603,-151.0,0.00012493,2]
[399567734,1766499031613,-500.0,0.00012493,2]
[399567735,1766499031622,-151.0,0.00012493,2]
[399567736,1766499031631,-500.0,0.00012493,2]
[399567737,1766499031641,-151.0,0.00012493,2]
[399567738,1766499031650,-151.0,0.00012493,2]
[399567739,1766499031659,-151.0,0.00012493,2]
[399567740,1766499031669,-151.0,0.00012493,2]
[399567742,1766499031678,-500.0,0.00012499,2]
[399567744,1766499031687,-197.68255652,0.00012499,2]